[Event "FIDE World Cup O10-B 2024"]
[Site "Batumi"]
[Date "2024.06.27"]
[Round "5.1"]
[White "Rahul Ramakrishnan"]
[Black "Shogdzhiev, Roman"]
[Result "1/2-1/2"]
[ECO "D10"]
[WhiteElo "1838"]
[BlackElo "2060"]
[Annotator "NA RC"]
[PlyCount "127"]
[EventDate "2024.06.23"]
[EventType "swiss"]
[EventCountry "GEO"]
[SourceTitle "playchess.com"]
[Source "ChessBase"]
[SourceQuality "1"]
[TimeControl "5400+30"]

1. d4 {[%emt 0:00:29]} d5 {[%emt 0:00:06]} 2. c4 {[%emt 0:00:42]} c6 {[%emt 0:00:03]} 3. cxd5 {[%emt 0:00:32]} cxd5 {[%emt 0:01:03]} 4. Nc3 {[%emt 0:00:40]} Nf6 {[%emt 0:00:01]} 5. Bf4 {[%emt 0:00:15]} Nc6 {[%emt 0:00:07]} 6. e3 {[%emt 0:00:10]} Bg4 {[%emt 0:00:16]} 7. Qb3 {[%emt 0:01:09] D10: Slav Defence: 3 cxd5 (without early Nf3) and 3 Nc3.} Na5 {[%emt 0:00:25]} 8. Qa4+ {[%emt 0:00:37]} Bd7 {[%emt 0:00:01]} 9. Qc2 {[%emt 0:01:33]} e6 {[%emt 0:01:07]} 10. Bd3 {[%emt 0:01:31]} Be7 {[%emt 0:03:31]} 11. Nf3 {[%emt 0:01:16]} Rc8 {[%emt 0:01:42]} 12. O-O {[%emt 0:00:45]} O-O {[%emt 0:00:29]} 13. Ne5 {[%emt 0:03:53]} Nc4 {[%emt 0:02:19]} 14. Qe2 {[%emt 0:01:52]} Nd6 {[%emt 0:03:46]} 15. a4 {[%emt 0:00:59]} Be8 {[%emt 0:01:20]} 16. a5 {[%emt 0:10:16]} (16. Nb5 $142) 16... a6 {[%emt 0:02:08]} 17. Rfc1 {[%emt 0:07:23]} Nd7 {[%emt 0:08:07]} 18. Nxd7 {[%emt 0:23:00]} Bxd7 {[%emt 0:09:42]} 19. Qh5 {[%emt 0:08:31]} f5 {[%emt 0:01:58]} 20. Qf3 {[%emt 0:10:27]} Ne4 $11 {[%emt 0:07:04]} 21. Bxe4 {[%emt 0:14:30]} fxe4 {[%emt 0:00:14]} 22. Qd1 {[%emt 0:00:21]} Rc4 {[%emt 0:11:43]} 23. b3 {[%emt 0:02:44]} Rc8 {[%emt 0:00:12]} 24. Na4 {[%emt 0:02:13]} Qxa5 {[%emt 0:08:22]} 25. Nc5 {[%emt 0:00:12]} Qb5 {[%emt 0:00:10]} 26. b4 {[%emt 0:03:00]} b6 {[%emt 0:00:27]} 27. Nxd7 {[%emt 0:00:21]} Qxd7 {[%emt 0:00:10]} 28. Rxa6 {[%emt 0:00:48]} Rxc1 {[%emt 0:03:33]} 29. Qxc1 {[%emt 0:00:01]} Rc8 {[%emt 0:04:26]} 30. Qa1 {[%emt 0:02:00]} Qc6 {[%emt 0:05:29]} 31. h3 {[%emt 0:00:28]} Bxb4 {[%emt 0:01:32]} 32. Ra7 {[%emt 0:02:03]} Bd6 {[%emt 0:03:45]} 33. Bxd6 {[%emt 0:00:50]} Qxd6 {[%emt 0:00:01]} 34. Ra8 {[%emt 0:00:30]} Qc6 {[%emt 0:02:18]} 35. Rxc8+ {[%emt 0:00:16]} Qxc8 {[%emt 0:00:01]} 36. Qa7 {[%emt 0:00:50]} Qc1+ {[%emt 0:03:57]} 37. Kh2 {[%emt 0:00:08]} Qc6 {[%emt 0:00:04]} 38. Qb8+ {[%emt 0:00:35]} Kf7 {[%emt 0:00:01]} 39. Qf4+ {[%emt 0:00:43]} Ke8 {[%emt 0:00:44]} 40. Qb8+ {[%emt 0:00:08]} Kd7 {[%emt 0:03:00]} 41. Qg8 {[%emt 0:00:44]} Qd6+ {[%emt 0:01:23]} 42. g3 {[%emt 0:00:08]} Qe7 {[%emt 0:00:03]} 43. Qa8 {[%emt 0:00:25]} Qd8 {[%emt 0:00:33]} 44. Qa4+ {[%emt 0:00:26]} Kd6 {[%emt 0:00:07]} 45. Qb4+ {[%emt 0:00:54]} Kc6 {[%emt 0:00:07]} 46. Qa4+ {[%emt 0:00:41]} Kb7 {[%emt 0:00:07]} 47. Qb5 {[%emt 0:00:38]} g6 {[%emt 0:02:16]} 48. Kg2 {[%emt 0:00:32]} Qc8 {[%emt 0:00:19]} 49. h4 {[%emt 0:00:27]} Qc6 {[%emt 0:00:25]} 50. Qb4 {[%emt 0:00:23]} Qd7 {[%emt 0:00:08]} 51. Qa3 {[%emt 0:00:44]} Qc7 {[%emt 0:06:12]} 52. Qb4 {[%emt 0:00:22]} Qd7 {[%emt 0:00:32]} 53. Qa3 {[%emt 0:00:09]} b5 {[%emt 0:00:19]} 54. Qc5 {[%emt 0:00:23]} Qc6 {[%emt 0:00:21]} 55. Qe7+ {[%emt 0:00:24]} Ka6 {[%emt 0:00:00]} 56. g4 {[%emt 0:01:19]} Qb7 {[%emt 0:03:30]} 57. Qa3+ {[%emt 0:00:06]} Kb6 {[%emt 0:00:06]} 58. Qc5+ {[%emt 0:00:02]} Ka5 {[%emt 0:01:36]} 59. Qa3+ {[%emt 0:00:01]} Kb6 {[%emt 0:00:10]} 60. Qc5+ {[%emt 0:00:04]} Ka6 {[%emt 0:00:34]} 61. Qa3+ {[%emt 0:00:03]} Kb6 {[%emt 0:00:54]} 62. Qc5+ {[%emt 0:00:03]} Ka5 {[%emt 0:00:19]} 63. Qa3+ {[%emt 0:00:06]} Kb6 {[%emt 0:00:05]} 64. Qc5+ {[%emt 0:00:05]} 1/2-1/2

[Event "FIDE World Cup O10-B 2024"]
[Site "Batumi"]
[Date "2024.06.27"]
[Round "5.2"]
[White "Ling, Chenxuan"]
[Black "Xia, Joshua"]
[Result "1-0"]
[ECO "D85"]
[WhiteElo "1868"]
[BlackElo "2060"]
[Annotator "NA RC"]
[PlyCount "97"]
[EventDate "2024.06.23"]
[EventType "swiss"]
[EventCountry "GEO"]
[SourceTitle "playchess.com"]
[Source "ChessBase"]
[SourceQuality "1"]
[TimeControl "5400+30"]

1. d4 {[%emt 0:00:15]} Nf6 {[%emt 0:00:04]} 2. c4 {[%emt 0:00:05]} g6 {[%emt 0:00:03]} 3. Nc3 {[%emt 0:00:03]} d5 {[%emt 0:00:04]} 4. cxd5 {[%emt 0:00:05]} Nxd5 {[%emt 0:00:05]} 5. Bd2 {[%emt 0:00:09]} Bg7 {[%emt 0:00:15]} 6. e4 {[%emt 0:00:07]} Nxc3 {[%emt 0:00:28]} 7. Bxc3 {[%emt 0:00:02]} O-O {[%emt 0:00:46]} 8. Qd2 {[%emt 0:02:39]} e6 {[%emt 0:01:19] D85: Exchange Grünfeld: Unusual White 7th moves and lines with 7 Nf3.} 9. h4 {[%emt 0:01:44]} b6 {[%emt 0:04:01]} 10. h5 {[%emt 0:09:40]} c5 {[%emt 0:00:55]} 11. dxc5 {[%emt 0:02:01]} Qxd2+ {[%emt 0:00:07]} 12. Kxd2 {[%emt 0:00:04]} Bxc3+ {[%emt 0:00:17]} 13. Kxc3 {[%emt 0:00:03]} bxc5 {[%emt 0:00:19]} 14. Bc4 {[%emt 0:00:18]} Bb7 {[%emt 0:00:48]} 15. f3 {[%emt 0:00:57]} Nc6 {[%emt 0:00:46]} 16. hxg6 {[%emt 0:01:05]} hxg6 {[%emt 0:00:04]} 17. Nh3 {[%emt 0:01:08]} Na5 {[%emt 0:28:25] [#]} 18. Ng5 {[%emt 0:03:12]} (18. Bxe6 $1 $18 {and White stays clearly on top.} Rfe8 (18... fxe6 $2 {loses.} 19. Ng5 $18) 19. Bb3) 18... Nxc4 {[%emt 0:01:18]} 19. Kxc4 {[%emt 0:01:31]} Ba6+ {[%emt 0:02:48] [#]} 20. Kc3 $1 {[%emt 0:07:23]} Kg7 {[%emt 0:19:29]} 21. Rad1 {[%emt 0:06:40]} Bb5 {[%emt 0:01:47]} 22. Rh7+ {[%emt 0:05:48]} Kf6 {[%emt 0:01:03]} 23. f4 {[%emt 0:01:28]} Ke7 {[%emt 0:03:09]} 24. Rd2 {[%emt 0:06:40]} Rac8 {[%emt 0:02:25]} 25. g4 {[%emt 0:07:59]} Bc6 $16 {[%emt 0:06:52]} 26. e5 {[%emt 0:03:21]} Bd5 {[%emt 0:02:11]} 27. f5 {[%emt 0:00:29]} gxf5 {[%emt 0:00:17]} 28. gxf5 {[%emt 0:00:22]} Rcd8 {[%emt 0:02:29]} 29. f6+ {[%emt 0:02:04]} Ke8 {[%emt 0:00:18]} 30. Rd3 {[%emt 0:01:00]} a6 {[%emt 0:04:31]} 31. Rg3 {[%emt 0:00:29]} Rd7 {[%emt 0:03:17]} 32. Rg7 {[%emt 0:01:00]} Rh8 {[%emt 0:01:33]} 33. Nh7 {[%emt 0:00:43]} Kd8 {[%emt 0:03:16]} 34. Rg8+ {[%emt 0:00:14]} Rxg8 {[%emt 0:00:04]} 35. Rxg8+ {[%emt 0:00:04]} Kc7 {[%emt 0:00:03]} 36. Ng5 {[%emt 0:00:07]} Bxa2 {[%emt 0:03:12]} 37. Rg7 {[%emt 0:00:16]} Kc6 {[%emt 0:10:12]} 38. Nxf7 {[%emt 0:01:56]} Rd5 {[%emt 0:00:00]} 39. Ng5 {[%emt 0:01:00]} c4 {[%emt 0:00:00]} 40. f7 {[%emt 0:01:14]} Kb5 {[%emt 0:00:00]} 41. b4 {[%emt 0:00:45]} Bb3 {[%emt 0:00:00]} 42. Ne4 {[%emt 0:00:28]} Rd3+ {[%emt 0:00:00]} 43. Kb2 {[%emt 0:00:04]} Rf3 {[%emt 0:01:30]} 44. Rg3 {[%emt 0:00:17]} Rf4 {[%emt 0:01:03]} 45. Nf6 {[%emt 0:00:48]} Rf2+ {[%emt 0:00:32]} 46. Kc3 {[%emt 0:00:53]} Rc2+ {[%emt 0:00:11]} 47. Kd4 {[%emt 0:00:04]} Rd2+ {[%emt 0:00:06]} 48. Ke3 {[%emt 0:00:14]} Rd3+ {[%emt 0:00:42]} 49. Kf4 {[%emt 0:00:05]} 1-0

[Event "FIDE World Cup O10-B 2024"]
[Site "Batumi"]
[Date "2024.06.27"]
[Round "5.3"]
[White "Zabelin, Platon"]
[Black "Yu, Zechen"]
[Result "1/2-1/2"]
[ECO "D36"]
[WhiteElo "1799"]
[BlackElo "1889"]
[Annotator "NA RC"]
[PlyCount "72"]
[EventDate "2024.06.23"]
[EventType "swiss"]
[EventCountry "GEO"]
[SourceTitle "playchess.com"]
[Source "ChessBase"]
[SourceQuality "1"]
[TimeControl "5400+30"]

1. d4 {[%emt 0:00:04]} d5 {[%emt 0:00:06]} 2. c4 {[%emt 0:00:19]} e6 {[%emt 0:00:05]} 3. Nc3 {[%emt 0:00:04]} Nf6 {[%emt 0:00:07]} 4. cxd5 {[%emt 0:00:06]} exd5 {[%emt 0:00:04]} 5. Bg5 {[%emt 0:00:06]} Be7 {[%emt 0:00:05]} 6. e3 {[%emt 0:00:07]} c6 {[%emt 0:00:09]} 7. Bd3 {[%emt 0:00:05]} O-O {[%emt 0:00:54]} 8. Qc2 {[%emt 0:00:19]} h6 {[%emt 0:00:50]} 9. Bh4 {[%emt 0:00:09]} Re8 {[%emt 0:05:51]} 10. Nge2 {[%emt 0:00:18]} Nbd7 {[%emt 0:05:44]} 11. O-O {[%emt 0:00:22]} Ne4 {[%emt 0:02:57]} 12. Bxe7 {[%emt 0:04:37]} Qxe7 {[%emt 0:00:41]} 13. Bxe4 {[%emt 0:03:13]} dxe4 {[%emt 0:00:26]} 14. Rfd1 {[%emt 0:02:09] D36: Queen's Gambit Declined: Exchange Variation: Main line (5 Bg5 c6 6 Qc2).} Nf6 {[%emt 0:09:56]} 15. d5 {[%emt 0:03:00]} Bd7 {[%emt 0:00:52]} 16. dxc6 {[%emt 0:08:32]} Bxc6 {[%emt 0:01:09]} 17. Nf4 {[%emt 0:01:59]} (17. h3 $14 {might be stronger.}) 17... Rac8 {[%emt 0:10:19]} 18. Qe2 {[%emt 0:03:15]} Red8 {[%emt 0:07:42]} 19. Rxd8+ {[%emt 0:11:25]} Rxd8 {[%emt 0:01:24]} 20. Rd1 {[%emt 0:00:11]} Rd6 {[%emt 0:01:27]} 21. h3 $11 {[%emt 0:02:02]} Qd8 {[%emt 0:05:27]} 22. Rxd6 {[%emt 0:00:09]} Qxd6 {[%emt 0:00:04]} 23. Qd1 {[%emt 0:00:08]} Qxd1+ {[%emt 0:12:28]} 24. Nxd1 {[%emt 0:00:06]} Kf8 {[%emt 0:00:39]} 25. Kf1 {[%emt 0:00:11]} Ke7 {[%emt 0:00:19]} 26. Ke1 {[%emt 0:00:34]} Kd6 {[%emt 0:02:05]} 27. Kd2 {[%emt 0:00:29]} Ke5 {[%emt 0:02:30]} 28. Nc3 {[%emt 0:04:17]} Nd7 {[%emt 0:06:19]} 29. Nfe2 {[%emt 0:01:19]} Nc5 {[%emt 0:01:37]} 30. Nd4 {[%emt 0:00:24]} Nd3 {[%emt 0:01:22]} 31. Nxc6+ {[%emt 0:07:13]} bxc6 {[%emt 0:00:13]} 32. f4+ {[%emt 0:00:28]} Ke6 {[%emt 0:00:32]} 33. Nxe4 {[%emt 0:01:14]} Nxb2 {[%emt 0:00:12]} 34. Kc3 {[%emt 0:01:46]} Kd5 {[%emt 0:09:07]} 35. Nd2 {[%emt 0:06:00]} Nd1+ {[%emt 0:02:07]} 36. Kd3 {[%emt 0:00:09]} f5 {[%emt 0:03:43]} 1/2-1/2

[Event "FIDE World Cup O10-B 2024"]
[Site "Batumi"]
[Date "2024.06.27"]
[Round "5.4"]
[White "Modith Aaroh Mutyalapati"]
[Black "Akramov, Khasan"]
[Result "1-0"]
[ECO "B27"]
[WhiteElo "1866"]
[BlackElo "1718"]
[Annotator "NA RC"]
[PlyCount "117"]
[EventDate "2024.06.23"]
[EventType "swiss"]
[EventCountry "GEO"]
[SourceTitle "playchess.com"]
[Source "ChessBase"]
[SourceQuality "1"]
[TimeControl "5400+30"]

1. e4 {[%emt 0:00:02]} c5 {[%emt 0:00:10]} 2. Nf3 {[%emt 0:00:04]} g6 {[%emt 0:00:04]} 3. d4 {[%emt 0:00:03]} cxd4 {[%emt 0:00:04]} 4. Qxd4 {[%emt 0:00:06]} Nf6 {[%emt 0:00:06]} 5. Qa4 {[%emt 0:00:04]} Nc6 {[%emt 0:00:09]} 6. Nc3 {[%emt 0:00:05]} d6 {[%emt 0:00:05]} 7. e5 {[%emt 0:00:08]} dxe5 {[%emt 0:00:04]} 8. Nxe5 {[%emt 0:00:04]} Bd7 {[%emt 0:00:04]} 9. Nxd7 {[%emt 0:00:10]} Nxd7 {[%emt 0:00:04]} 10. Be3 {[%emt 0:02:47]} Bg7 {[%emt 0:02:08]} 11. Be2 {[%emt 0:09:28]} O-O {[%emt 0:00:10]} 12. O-O {[%emt 0:00:16]} Nb6 {[%emt 0:07:52]} 13. Qa3 {[%emt 0:09:07]} Nd4 {[%emt 0:12:56]} (13... Qc7 $11 {feels stronger.}) 14. Bxd4 $1 {[%emt 1:15:06]} Qxd4 {[%emt 0:01:19]} 15. Qxe7 $14 {[%emt 0:00:00]} Nd5 {[%emt 0:06:18]} 16. Nxd5 {[%emt 0:00:00]} Qxd5 {[%emt 0:00:07]} 17. Rfd1 {[%emt 0:00:00]} Qc6 {[%emt 0:02:10]} 18. Bd3 {[%emt 0:00:00]} Rfe8 {[%emt 0:04:04]} 19. Qb4 {[%emt 0:00:00]} a5 {[%emt 0:09:37]} 20. Qb5 {[%emt 0:00:00]} Qc7 {[%emt 0:05:24]} 21. Bc4 {[%emt 0:00:00]} Re7 {[%emt 0:08:48]} 22. c3 {[%emt 0:00:00]} Rae8 {[%emt 0:01:56]} 23. g3 {[%emt 0:00:00]} Qc8 {[%emt 0:08:31]} 24. Kg2 {[%emt 0:00:00]} h5 {[%emt 0:15:52]} 25. h4 {[%emt 0:00:00]} Qg4 {[%emt 0:04:18]} 26. f3 {[%emt 0:00:00]} Qc8 {[%emt 0:00:13]} 27. Rd6 {[%emt 0:00:00]} Re5 {[%emt 0:05:58]} 28. Rd5 {[%emt 0:00:00]} Rxd5 {[%emt 0:03:54]} 29. Qxd5 {[%emt 0:00:00]} Qc7 {[%emt 0:00:13]} 30. Rd1 {[%emt 0:00:00]} Re7 {[%emt 0:01:12]} 31. Qd8+ {[%emt 0:00:00]} Kh7 {[%emt 0:00:06]} 32. Qxc7 {[%emt 0:00:00]} Rxc7 {[%emt 0:00:05]} 33. Bb5 {[%emt 0:00:00]} Rc5 {[%emt 0:00:15]} 34. a4 {[%emt 0:00:00]} Rc7 {[%emt 0:01:18]} 35. Rd5 {[%emt 0:00:00]} Bf8 {[%emt 0:00:38]} 36. Bd3 {[%emt 0:00:00]} f5 {[%emt 0:00:38]} 37. g4 {[%emt 0:00:00]} hxg4 {[%emt 0:00:28]} 38. fxg4 {[%emt 0:00:00]} fxg4 {[%emt 0:00:16]} 39. h5 {[%emt 0:00:00]} Bh6 {[%emt 0:00:17]} 40. Bxg6+ {[%emt 0:00:00]} Kg7 {[%emt 0:00:04]} 41. Kg3 {[%emt 0:00:00]} Bc1 {[%emt 0:00:17]} 42. Rb5 {[%emt 0:00:00]} Be3 {[%emt 0:00:41]} 43. Rxa5 {[%emt 0:00:00]} Rc4 {[%emt 0:00:28]} 44. Bd3 {[%emt 0:00:00]} Rc6 {[%emt 0:00:26]} 45. Kxg4 {[%emt 0:00:00]} Rb6 {[%emt 0:00:08]} 46. Rb5 {[%emt 0:00:00]} Rxb5 {[%emt 0:00:15]} 47. Bxb5 {[%emt 0:00:00]} Kf6 {[%emt 0:00:35]} 48. Kf3 {[%emt 0:00:00]} Bc1 {[%emt 0:00:13]} 49. b3 {[%emt 0:00:00]} Bd2 {[%emt 0:00:26]} 50. c4 {[%emt 0:00:00]} Bb4 {[%emt 0:00:25]} 51. Ke4 {[%emt 0:00:00]} Ke6 {[%emt 0:00:41]} 52. Kd4 {[%emt 0:00:00]} b6 {[%emt 0:00:18]} 53. h6 {[%emt 0:00:00]} Bf8 {[%emt 0:00:08]} 54. h7 {[%emt 0:00:00]} Bg7+ {[%emt 0:00:04]} 55. Ke4 {[%emt 0:00:00]} Bc3 {[%emt 0:00:16]} 56. b4 {[%emt 0:00:00]} Kd6 {[%emt 0:00:26]} 57. a5 {[%emt 0:00:00]} bxa5 {[%emt 0:00:26]} 58. c5+ {[%emt 0:00:00]} Kc7 {[%emt 0:00:04]} 59. bxa5 {[%emt 0:22:30]} 1-0

[Event "FIDE World Cup O10-B 2024"]
[Site "Batumi"]
[Date "2024.06.27"]
[Round "5.5"]
[White "Karthik, Anand T."]
[Black "Azimov, Yasin"]
[Result "1-0"]
[ECO "E01"]
[WhiteElo "2022"]
[BlackElo "1833"]
[Annotator "NA RC"]
[PlyCount "95"]
[EventDate "2024.06.23"]
[EventType "swiss"]
[EventCountry "GEO"]
[SourceTitle "playchess.com"]
[Source "ChessBase"]
[SourceQuality "1"]
[TimeControl "5400+30"]

1. d4 {[%emt 0:00:16]} Nf6 {[%emt 0:00:09]} 2. c4 {[%emt 0:00:27]} e6 {[%emt 0:00:08]} 3. g3 {[%emt 0:00:09]} Bb4+ {[%emt 0:00:09]} 4. Nd2 {[%emt 0:01:48]} O-O {[%emt 0:00:14]} 5. Bg2 {[%emt 0:01:00]} d5 {[%emt 0:00:08]} 6. Ngf3 {[%emt 0:01:09]} c6 {[%emt 0:01:10]} 7. O-O {[%emt 0:01:02] E01: Catalan: Early deviations.} Nbd7 {[%emt 0:01:32]} 8. Qc2 {[%emt 0:01:23]} Re8 {[%emt 0:05:24]} 9. e4 {[%emt 0:02:30] The main line 9.e4 scores better than 9.Rd1.} dxe4 {[%emt 0:00:10]} 10. Nxe4 {[%emt 0:00:16]} Nxe4 {[%emt 0:00:17]} 11. Qxe4 {[%emt 0:00:10]} Nf6 {[%emt 0:00:05]} 12. Qc2 {[%emt 0:00:37]} h6 {[%emt 0:15:44]} 13. Rd1 {[%emt 0:03:19]} Bd6 {[%emt 0:02:55]} 14. Be3 $146 {[%emt 0:04:02]} ({Predecessor:} 14. h3 Qe7 15. c5 Bc7 16. Re1 Rd8 17. a4 Bd7 18. Ra3 Be8 19. a5 Nd5 20. Bd2 {1-0 Cederstam Barsk,C (2368)-Larsson,A (2203) SWE-chT 2122 Elite 2021 (5.3)}) 14... Ng4 {[%emt 0:01:53] [#]} 15. Bd2 $1 {[%emt 0:05:15]} Qe7 {[%emt 0:02:13]} 16. h3 {[%emt 0:01:38]} Nf6 {[%emt 0:00:06]} 17. a3 {[%emt 0:02:41]} c5 {[%emt 0:06:28]} 18. dxc5 {[%emt 0:01:44]} Bxc5 {[%emt 0:00:09]} 19. b4 {[%emt 0:00:11]} Bd6 {[%emt 0:00:10]} 20. Bc3 {[%emt 0:02:28]} Bc7 {[%emt 0:06:41]} 21. Ne5 {[%emt 0:05:50]} a5 {[%emt 0:03:06]} 22. b5 {[%emt 0:03:03]} Bb6 {[%emt 0:02:28]} 23. Nd3 {[%emt 0:02:16]} (23. a4 $18) 23... Nd7 {[%emt 0:03:28]} ({Better is} 23... e5) 24. Qb2 {[%emt 0:02:24]} Qg5 {[%emt 0:04:23]} ({Black should try} 24... e5) 25. Kh2 {[%emt 0:02:08]} Nc5 {[%emt 0:06:47]} 26. Nxc5 $18 {[%emt 0:02:15]} Bxc5 {[%emt 0:00:25]} 27. f4 {[%emt 0:00:19]} Qg6 {[%emt 0:00:50]} 28. b6 {[%emt 0:01:54]} f6 {[%emt 0:03:33]} 29. Rd2 {[%emt 0:08:31]} Ra6 {[%emt 0:02:42]} 30. Qb5 {[%emt 0:00:16]} Bxb6 {[%emt 0:06:50]} 31. c5 {[%emt 0:00:15]} Bc7 {[%emt 0:00:25]} 32. Bxb7 {[%emt 0:01:03]} Ra7 {[%emt 0:00:15]} 33. Be4 {[%emt 0:03:45]} f5 {[%emt 0:00:58]} 34. Bc6 {[%emt 0:01:11]} Rf8 {[%emt 0:01:15]} 35. Bd7 {[%emt 0:01:23]} h5 {[%emt 0:11:14]} 36. h4 {[%emt 0:03:04]} Ba6 {[%emt 0:04:18]} 37. Qc6 {[%emt 0:00:49]} Bc4 {[%emt 0:00:06]} 38. Re1 {[%emt 0:01:13]} Qg4 {[%emt 0:03:36]} 39. Rd4 {[%emt 0:01:57]} Bd5 {[%emt 0:02:27]} 40. Rxd5 {[%emt 0:08:24]} exd5 {[%emt 0:00:10]} 41. Re7 {[%emt 0:00:22]} Bd8 {[%emt 0:00:39]} 42. Qe6+ {[%emt 0:00:12]} Kh7 {[%emt 0:00:23]} 43. Rxg7+ {[%emt 0:03:12]} Qxg7 {[%emt 0:00:03]} 44. Bxg7 {[%emt 0:00:07]} Kxg7 {[%emt 0:00:08]} 45. Qxd5 {[%emt 0:00:18]} Bf6 {[%emt 0:00:25]} 46. c6 {[%emt 0:00:31]} Rb8 {[%emt 0:00:06]} 47. Qxf5 {[%emt 0:00:21]} Rb2+ {[%emt 0:00:12]} 48. Kh3 {[%emt 0:00:06]} 1-0

[Event "FIDE World Cup O10-B 2024"]
[Site "Batumi"]
[Date "2024.06.27"]
[Round "5.6"]
[White "Zhauynbay, Alimzhan"]
[Black "Shen, Houlin"]
[Result "1-0"]
[ECO "B67"]
[WhiteElo "1903"]
[BlackElo "1583"]
[Annotator "NA RC"]
[PlyCount "53"]
[EventDate "2024.06.23"]
[EventType "swiss"]
[EventCountry "GEO"]
[SourceTitle "playchess.com"]
[Source "ChessBase"]
[SourceQuality "1"]
[TimeControl "5400+30"]

1. e4 {[%emt 0:00:22]} c5 {[%emt 0:01:58]} 2. Nf3 {[%emt 0:00:12]} Nc6 {[%emt 0:00:04]} 3. d4 {[%emt 0:00:06]} cxd4 {[%emt 0:00:39]} 4. Nxd4 {[%emt 0:00:06]} Nf6 {[%emt 0:00:10]} 5. Nc3 {[%emt 0:00:06]} d6 {[%emt 0:01:46]} 6. Bg5 {[%emt 0:00:07]} e6 {[%emt 0:00:32]} 7. Qd2 {[%emt 0:00:31]} a6 {[%emt 0:01:45]} 8. O-O-O {[%emt 0:00:25]} Bd7 {[%emt 0:00:29]} 9. f4 {[%emt 0:00:32]} b5 {[%emt 0:01:18]} 10. Bxf6 {[%emt 0:00:18]} gxf6 {[%emt 0:00:45]} 11. Kb1 {[%emt 0:01:31]} Qb6 {[%emt 0:03:12]} 12. Nxc6 {[%emt 0:00:53]} Bxc6 {[%emt 0:00:07]} 13. f5 {[%emt 0:01:58]} b4 {[%emt 0:00:33] B67: Sicilian: Richter-Rauzer: 7...a6 8 0-0-0 Bd7, lines without 9 f4 Be7.} 14. Ne2 {[%emt 0:00:04]} e5 {[%emt 0:00:05]} 15. Ng3 {[%emt 0:00:13]} h5 {[%emt 0:00:33]} 16. h4 {[%emt 0:00:31]} Rd8 {[%emt 0:05:53]} 17. Bc4 {[%emt 0:01:31]} Qc5 {[%emt 0:04:17]} 18. Qe2 {[%emt 0:03:02]} ({But not} 18. Bxa6 $6 Be7 $16) 18... a5 {[%emt 0:02:33]} 19. b3 {[%emt 0:02:49]} ({Weaker is} 19. Nxh5 Rxh5 20. Bxf7+ Kxf7 $11) 19... Ke7 {[%emt 0:08:04]} 20. Nxh5 {[%emt 0:05:18]} Bxe4 {[%emt 0:09:44]} 21. Qxe4 {[%emt 0:01:02]} Rxh5 {[%emt 0:02:32]} 22. Rd5 {[%emt 0:00:17]} Qf2 $18 {[%emt 0:10:00]} 23. Rb5 {[%emt 0:01:53]} Rd7 {[%emt 0:18:36]} 24. Qd5 {[%emt 0:01:27]} Rh7 {[%emt 0:00:31]} 25. Rb7 {[%emt 0:03:03]} Bh6 {[%emt 0:11:37]} 26. Rd1 {[%emt 0:05:14]} Rxb7 {[%emt 0:03:51]} 27. Qxd6+ {[%emt 0:00:08]} 1-0

[Event "FIDE World Cup O10-B 2024"]
[Site "Batumi"]
[Date "2024.06.27"]
[Round "5.7"]
[White "Jibladze, Nikoloz"]
[Black "AlJamaat, Khaled"]
[Result "0-1"]
[ECO "C58"]
[WhiteElo "1612"]
[BlackElo "1644"]
[Annotator "NA RC"]
[PlyCount "76"]
[EventDate "2024.06.23"]
[EventType "swiss"]
[EventCountry "GEO"]
[SourceTitle "playchess.com"]
[Source "ChessBase"]
[SourceQuality "1"]
[TimeControl "5400+30"]

1. e4 {[%emt 0:00:32]} e5 {[%emt 0:00:22]} 2. Nf3 {[%emt 0:02:06]} Nc6 {[%emt 0:00:17]} 3. Bc4 {[%emt 0:01:33]} Nf6 {[%emt 0:00:51]} 4. Ng5 {[%emt 0:02:20]} d5 {[%emt 0:01:20]} 5. exd5 {[%emt 0:00:23]} Na5 {[%emt 0:00:31]} 6. Bb5+ {[%emt 0:00:14]} c6 {[%emt 0:00:20]} 7. dxc6 {[%emt 0:00:14]} bxc6 {[%emt 0:00:13]} 8. Qf3 {[%emt 0:01:51]} Be7 {[%emt 0:01:09]} 9. Nc3 {[%emt 0:06:47]} Bg4 {[%emt 0:01:26]} 10. Bxc6+ {[%emt 0:05:15]} Kf8 {[%emt 0:00:39]} 11. Qg3 {[%emt 0:05:09]} Nxc6 {[%emt 0:00:41]} 12. Nf3 {[%emt 0:05:42]} Bxf3 {[%emt 0:02:54]} 13. Qxf3 {[%emt 0:00:34]} Nd4 {[%emt 0:00:13]} 14. Qd1 {[%emt 0:00:12]} g6 {[%emt 0:00:04]} 15. d3 {[%emt 0:07:49]} Kg7 {[%emt 0:00:46]} 16. O-O {[%emt 0:00:20]} Re8 {[%emt 0:00:12]} 17. f4 {[%emt 0:57:59]} exf4 {[%emt 0:08:31]} 18. Bxf4 {[%emt 0:00:00]} Bc5 {[%emt 0:01:21]} 19. Kh1 {[%emt 0:00:00]} Nf5 {[%emt 0:00:27]} 20. Qf3 {[%emt 0:01:30]} h5 {[%emt 1:18:13]} 21. Bg5 {[%emt 0:00:00]} Be7 {[%emt 0:00:00]} 22. Rae1 {[%emt 0:00:00]} Ng8 {[%emt 0:01:00]} 23. Bf4 {[%emt 0:01:30]} Nf6 {[%emt 0:00:30]} 24. Bg5 {[%emt 0:00:00]} Ng4 {[%emt 0:00:00]} 25. Bxe7 {[%emt 0:00:00]} Rxe7 {[%emt 0:00:00]} 26. Ne4 {[%emt 0:00:00]} Qc7 {[%emt 0:00:00]} 27. g3 {[%emt 0:00:00]} Qxc2 {[%emt 0:00:00]} 28. Re2 {[%emt 0:00:00]} Qc7 {[%emt 0:00:00]} 29. h3 {[%emt 0:01:13]} Nd4 {[%emt 0:00:00]} 30. Qg2 {[%emt 0:00:57]} Nxe2 {[%emt 0:00:00]} 31. Qxe2 {[%emt 0:00:20]} Ne5 {[%emt 0:00:00]} 32. Qe3 {[%emt 0:01:00]} Rae8 {[%emt 0:00:00]} 33. Qg5 {[%emt 0:00:43]} Qc6 {[%emt 0:00:00]} 34. Kg1 {[%emt 0:00:30]} f5 {[%emt 0:00:00]} 35. Rxf5 {[%emt 0:00:13]} Nf7 {[%emt 0:00:00]} 36. Qf4 {[%emt 0:01:01]} gxf5 {[%emt 0:00:00]} 37. g4 {[%emt 0:00:08]} fxe4 {[%emt 0:00:00]} 38. gxh5 {[%emt 0:00:02]} Qc5+ {[%emt 0:00:00]} 0-1